bitfinex-derivatives/quotes_SOLF0:USTF0_20241025
["timestamp","ask_amount","ask_price","bid_price","bid_amount"]
[1729888769710,8.25199133,167.84,167.81,5.04]
[1729888770510,11.23819133,167.84,167.81,5.04]
[1729888776015,8.25199133,167.82,167.79,2.987]
[1729888776215,8.25199133,167.82,167.79,8.027]
[1729888776611,8.25199133,167.81,167.79,5.04]
[1729888778216,11.23879133,167.81,167.79,5.04]
[1729888778722,11.23879133,167.81,167.78,5.04]
[1729888782220,8.25199133,167.81,167.78,5.04]
[1729888783310,11.23879133,167.81,167.78,5.04]
[1729888784418,11.23879133,167.81,167.78,8.0273]
[1729888787616,11.23879133,167.81,167.78,5.04]
[1729888790123,11.23879133,167.81,167.78,8.0273]
[1729888790819,11.23879133,167.81,167.78,5.04]
[1729888798962,8.25199133,167.81,167.78,5.04]
[1729888799129,2.9869,167.8,167.78,5.04]
[1729888799924,8.25199133,167.79,167.67,58.0]
[1729888800119,8.25199133,167.79,167.74,5.04]
[1729888800324,8.25199133,167.82,167.76,8.25199133]
[1729888800734,11.23899133,167.8,167.76,2.9876]
[1729888800928,11.23899133,167.8,167.75,8.25199133]
[1729888801450,2.9871,167.79,167.75,11.23979133]
[1729888802740,11.23909133,167.79,167.75,2.9878]
[1729888804335,11.23949133,167.77,167.74,5.04]
[1729888804539,11.23949133,167.77,167.75,5.04]
[1729888805042,2.9875,167.77,167.75,5.04]
[1729888805741,8.25199133,167.79,167.75,5.04]
[1729888805932,2.9876,167.76,167.75,5.04]
[1729888806133,8.25199133,167.77,167.72,8.25199133]
[1729888806328,8.25199133,167.77,167.73,5.04]
[1729888806742,2.9881,167.74,167.73,5.04]
[1729888807140,8.25199133,167.75,167.68,1.202]
[1729888807446,2.4915,167.81,167.69,6.5344579]
[1729888807447,8.25199133,167.74,167.69,6.5344579]
[1729888807642,8.25199133,167.74,167.7,1.4944579]
[1729888807847,2.9887,167.7,167.68,9.45399133]
[1729888808048,2.9887,167.7,167.69,6.53463591]
[1729888808440,8.25199133,167.74,167.69,14.78662724]
[1729888808744,2.9885,167.72,167.7,1.49463591]
[1729888808947,2.9885,167.72,167.69,16.28089133]
[1729888809149,2.9885,167.72,167.7,1.49459638]
[1729888809348,2.9885,167.72,167.69,16.28089133]
[1729888809543,2.4915,167.81,167.71,8.25199133]
[1729888809853,8.25199133,167.8,167.75,8.25199133]
[1729888810053,8.25199133,167.8,167.72,1.49439814]
[1729888810054,2.4915,167.81,167.77,8.25199133]
[1729888810266,3.00349603,167.92,167.8,8.25199133]
[1729888810554,8.25199133,167.86,167.77,5.04]
[1729888810751,8.25199133,167.86,167.8,8.25199133]
[1729888812352,2.9867,167.82,167.8,8.25199133]
[1729888814559,8.25199133,167.86,167.77,5.04]
[1729888814755,8.25199133,167.86,167.79,8.25199133]
[1729888814958,8.25199133,167.86,167.8,1.49404647]
[1729888815159,2.9865,167.83,167.79,8.25199133]
[1729888815358,2.9865,167.83,167.8,1.49397726]
[1729888815555,2.9865,167.83,167.79,8.25199133]
[1729888815760,2.9865,167.83,167.8,1.49398418]
[1729888815963,2.9865,167.83,167.79,8.25199133]
[1729888816260,2.9865,167.83,167.8,1.49398418]
[1729888816563,8.25199133,167.83,167.78,13.29199133]
[1729888816764,8.25199133,167.83,167.78,8.25199133]
[1729888816956,8.25199133,167.83,167.79,1.49414173]
[1729888817170,2.4704,167.84,167.75,2.9878]
[1729888817364,8.25199133,167.82,167.76,14.78604569]
[1729888817661,8.25199133,167.8,167.77,1.49405436]
[1729888817863,8.25199133,167.79,167.76,5.04]
[1729888818065,8.25199133,167.77,167.74,5.04]
[1729888818364,2.9878,167.76,167.74,5.04]
[1729888818557,8.25199133,167.77,167.74,5.04]
[1729888818958,8.25199133,167.77,167.75,1.49446696]
[1729888819152,1.3241,167.83,167.74,5.04]
[1729888819153,8.25199133,167.76,167.74,5.04]
[1729888819353,8.25199133,167.76,167.61,3.01030803]
[1729888819662,8.25199133,167.7,167.66,3.88584583]
[1729888819968,11.24079133,167.7,167.67,1.49455609]
[1729888820164,2.9888,167.7,167.68,1.49455609]
[1729888820360,2.9888,167.7,167.69,1.49455609]
[1729888820561,2.9884,167.72,167.69,1.49455609]
[1729888820762,1.2308,167.75,167.71,8.25199133]
[1729888822366,1.2308,167.75,167.7,5.04]
[1729888823362,2.9885,167.71,167.7,5.04]
[1729888824160,2.9884,167.72,167.7,5.04]
[1729888825363,2.989,167.69,167.63,8.0298]
[1729888825667,2.989,167.69,167.64,1.49501978]
[1729888825865,2.989,167.69,167.65,1.49501978]
[1729888826063,2.9891,167.68,167.66,1.49501978]
[1729888826260,2.9891,167.68,167.67,1.49501978]
[1729888826566,2.9891,167.68,167.63,6.2549]
[1729888826765,2.9891,167.68,167.64,1.49502872]
[1729888827068,2.9891,167.68,167.65,1.49502872]
[1729888827368,2.9891,167.68,167.66,1.49502872]
[1729888827565,2.9891,167.68,167.63,9.2447]
[1729888827766,2.9891,167.68,167.64,1.49502749]
[1729888827983,2.9891,167.68,167.65,1.49502749]
[1729888828180,2.9891,167.68,167.66,1.49502749]
[1729888828366,2.9891,167.68,167.63,9.2447]
[1729888828562,12.92509476,167.73,167.64,1.49503264]
[1729888828767,12.92509476,167.71,167.65,1.49503264]
[1729888829068,12.92509476,167.71,167.6,15.49009476]
[1729888829364,12.92509476,167.71,167.63,5.04]
[1729888829568,12.92509476,167.71,167.64,1.49510285]
[1729888829864,12.92509476,167.71,167.6,18.48049476]
[1729888829865,2.9897,167.65,167.62,5.04]
[1729888830069,2.9897,167.65,167.63,1.49510155]
[1729888830266,2.9897,167.65,167.62,5.04]
[1729888830456,2.9897,167.65,167.63,1.49510355]
[1729888830658,12.92509476,167.73,167.62,17.96509476]
[1729888830968,12.92509476,167.73,167.64,12.92509476]
[1729888831367,2.9891,167.68,167.64,12.92509476]
[1729888831688,12.92509476,167.73,167.64,12.92509476]
[1729888831867,2.9886,167.71,167.64,12.92509476]
[1729888832082,12.92509476,167.73,167.62,20.95519476]
[1729888832257,12.92509476,167.73,167.62,5.04]
[1729888832258,12.92509476,167.71,167.62,5.04]
[1729888832471,12.92509476,167.69,167.62,5.04]
[1729888832673,12.92509476,167.69,167.6,14.22489476]
[1729888832863,12.92509476,167.69,167.61,6.53523505]
[1729888833059,12.92509476,167.69,167.61,5.04]
[1729888834172,2.9899,167.64,167.61,5.04]
[1729888834369,12.92509476,167.69,167.61,5.04]
[1729888834667,2.5027,167.68,167.61,5.04]
[1729888835765,2.9901,167.62,167.61,5.04]
[1729888837064,2.9904,167.61,167.59,5.04]
[1729888837265,2.5027,167.68,167.59,5.04]
[1729888837466,2.9903,167.61,167.59,5.04]
[1729888837666,2.5027,167.68,167.59,5.04]
[1729888838073,2.9895,167.66,167.59,5.04]
[1729888838275,2.5027,167.68,167.59,5.04]
[1729888839493,2.9901,167.63,167.59,5.04]
[1729888840270,2.5027,167.68,167.59,5.04]
[1729888840470,2.9902,167.62,167.59,5.04]
[1729888840881,2.9896,167.65,167.59,5.04]
[1729888841073,14.15059476,167.67,167.56,4.2337]
[1729888841276,12.92509476,167.64,167.57,5.02]
[1729888841470,12.92509476,167.62,167.57,5.02]
[1729888841771,12.92509476,167.62,167.55,5.02]
[1729888842175,2.9909,167.58,167.55,5.02]
[1729888842781,12.92509476,167.62,167.56,2.9911]
[1729888842782,2.9901,167.62,167.56,2.9911]
[1729888842971,14.15059476,167.67,167.57,12.92509476]
[1729888843170,14.15059476,167.67,167.57,14.21179476]
[1729888843368,14.15059476,167.67,167.58,2.9907]
[1729888843874,2.99,167.63,167.58,2.9907]
[1729888846380,2.9902,167.62,167.57,17.20279476]
[1729888848780,14.15059476,167.67,167.57,17.20279476]
[1729888848980,2.9903,167.61,167.57,17.20279476]
[1729888849577,2.9905,167.6,167.57,1.2867]
[1729888849788,12.92509476,167.65,167.56,1.2148]
[1729888850186,12.92509476,167.65,167.55,17.94509476]
[1729888850681,1.2255,167.67,167.55,17.94509476]
[1729888850682,1.2471,167.68,167.62,12.92509476]
[1729888850884,1.2471,167.68,167.62,17.94509476]
[1729888851084,2.9896,167.65,167.62,17.94509476]
[1729888851282,2.9896,167.65,167.62,5.02]
[1729888853284,2.4922,167.72,167.62,17.94509476]
[1729888853485,2.9893,167.67,167.62,20.93509476]
[1729888854086,2.9894,167.66,167.62,20.93509476]
[1729888854784,2.9894,167.66,167.62,17.94509476]
[1729888856084,2.9899,167.64,167.62,5.02]
[1729888856277,12.92509476,167.71,167.62,5.02]
[1729888856778,2.9899,167.63,167.62,5.02]
[1729888857181,12.92509476,167.71,167.62,5.02]
[1729888857390,2.9898,167.64,167.62,5.02]
[1729888858596,2.9898,167.64,167.6,12.92509476]
[1729888858786,2.9898,167.64,167.61,5.02]
[1729888861988,2.9899,167.63,167.61,5.02]
[1729888864747,3.6907,167.72,167.62,15.91519476]
[1729888864891,3.6907,167.72,167.61,5.02]
[1729888864892,1.1985,167.72,167.67,12.92509476]
[1729888865097,2.9889,167.69,167.67,12.92509476]
[1729888865794,1.1985,167.72,167.66,5.02]
[1729888865795,2.989,167.68,167.66,5.02]
[1729888866092,1.1985,167.72,167.66,5.02]
[1729888866288,2.9886,167.71,167.66,5.02]
[1729888866490,1.1985,167.72,167.66,5.02]
[1729888867587,2.9892,167.68,167.66,5.02]
[1729888867790,2.5941,167.8,167.67,12.92509476]
[1729888867990,17.94509476,167.78,167.67,12.92509476]
[1729888868194,2.9886,167.71,167.67,12.92509476]
[1729888868890,6.259,167.79,167.69,12.92509476]
[1729888871191,2.9883,167.72,167.69,12.92509476]
[1729888872199,2.9886,167.71,167.69,12.92509476]
[1729888875006,1.239,167.79,167.69,12.92509476]
[1729888875206,1.239,167.79,167.74,12.92509476]
[1729888876504,2.9877,167.76,167.74,12.92509476]
[1729888880205,2.9877,167.76,167.73,5.02]
[1729888887512,1.2439,167.84,167.74,12.92509476]
[1729888887713,12.92509476,167.88,167.79,12.92509476]
[1729888887921,2.5232,167.9,167.81,12.92509476]
[1729888888212,2.5232,167.9,167.74,1.259]
[1729888888413,12.92509476,167.89,167.78,12.92509476]
[1729888888625,2.9859,167.86,167.78,12.92509476]
[1729888888915,12.92509476,167.89,167.78,12.92509476]
[1729888889815,2.9861,167.85,167.8,12.92509476]
[1729888890017,2.9861,167.85,167.81,5.02]
[1729888890409,2.5232,167.9,167.81,5.02]
[1729888890410,2.986,167.86,167.81,8.0067]
[1729888890610,2.986,167.86,167.81,5.02]
[1729888890811,2.5232,167.9,167.81,5.02]
[1729888891013,2.986,167.85,167.81,5.02]
[1729888892017,2.9862,167.84,167.81,5.02]
[1729888892223,12.92509476,167.87,167.76,14.21739476]
[1729888892527,12.92509476,167.85,167.77,5.02]
[1729888893219,2.9869,167.8,167.77,5.02]
[1729888893622,12.92509476,167.85,167.77,5.02]
[1729888893925,12.92509476,167.8,167.72,12.92509476]
[1729888894224,12.92509476,167.8,167.73,5.02]
[1729888894412,12.92509476,167.8,167.66,2.4892]
[1729888894720,12.92509476,167.8,167.68,12.92509476]
[1729888895024,12.92509476,167.8,167.69,1.49461627]
[1729888895224,12.92509476,167.78,167.68,12.92509476]
[1729888896330,2.9881,167.74,167.69,2.9887]
[1729888897522,2.9881,167.74,167.7,2.9886]
[1729888898825,2.9883,167.73,167.69,2.9888]
[1729888899030,12.92509476,167.78,167.68,12.92509476]
[1729888899330,2.9885,167.71,167.68,15.91409476]
[1729888899524,2.9885,167.71,167.69,5.02]
[1729888899724,2.9885,167.71,167.7,5.02]
[1729888900126,2.9884,167.72,167.7,5.02]
[1729888901428,3.8326,167.82,167.7,5.02]
[1729888901429,2.9885,167.71,167.7,5.02]
[1729888901629,12.92509476,167.74,167.66,1.1988]
[1729888901832,1.3113,167.75,167.67,5.0]
[1729888903335,2.9884,167.72,167.67,7.9891]
[1729888904137,1.3113,167.75,167.67,5.0]
[1729888905230,2.9885,167.72,167.67,5.0]
[1729888906032,2.9885,167.72,167.67,7.9891]
[1729888908246,2.9885,167.72,167.65,58.06]
[1729888908247,12.92509476,167.71,167.65,58.06]
[1729888908541,2.4922,167.74,167.64,5.02]
[1729888908736,2.9887,167.7,167.64,5.02]
[1729888909043,14.18099476,167.74,167.64,5.02]
[1729888909346,2.9882,167.73,167.65,14.21119476]
[1729888909728,1.2559,167.74,167.65,14.21119476]
[1729888910637,1.3113,167.75,167.67,12.92509476]
[1729888911140,14.16139476,167.79,167.7,12.92509476]
[1729888911335,1.2363,167.79,167.71,5.02]
[1729888911938,2.9877,167.76,167.71,5.02]
[1729888912448,1.2363,167.79,167.71,5.02]
[1729888913336,12.92509476,167.78,167.71,5.02]
[1729888913738,2.9883,167.72,167.71,5.02]
[1729888915249,12.92509476,167.76,167.71,5.02]
[1729888915250,2.9881,167.73,167.71,5.02]
[1729888915444,12.92509476,167.76,167.71,5.02]
[1729888915748,2.9881,167.74,167.71,5.02]
[1729888916139,12.92509476,167.76,167.71,5.02]
[1729888916341,2.9883,167.72,167.71,5.02]
[1729888917851,2.9888,167.7,167.67,5.02]
[1729888918247,12.92509476,167.76,167.67,5.02]
[1729888918446,2.9883,167.73,167.67,20.93419476]
[1729888918746,12.92509476,167.76,167.67,17.94509476]
[1729888918952,2.9885,167.72,167.67,17.94509476]
[1729888919145,12.92509476,167.76,167.67,17.94509476]
[1729888919847,2.9886,167.71,167.67,5.02]
[1729888922248,12.92509476,167.74,167.68,5.02]
[1729888922453,12.92509476,167.76,167.68,5.02]
[1729888922651,2.9884,167.72,167.68,5.02]
[1729888922876,12.92509476,167.76,167.68,5.02]
[1729888923456,2.9885,167.71,167.68,5.02]
[1729888924650,12.92509476,167.76,167.68,5.02]
[1729888924852,12.92509476,167.74,167.68,5.02]
[1729888925249,2.9887,167.7,167.68,5.02]
[1729888925450,12.92509476,167.74,167.65,2.5073]
[1729888925652,12.92509476,167.74,167.66,5.02]
[1729888926647,2.989,167.68,167.66,5.02]
[1729888926848,12.92509476,167.72,167.61,12.92509476]
[1729888927048,2.9895,167.66,167.62,6.5152024]
[1729888927251,1.2359,167.71,167.63,1.4952024]
[1729888927560,2.9891,167.68,167.63,2.99]
[1729888927754,14.16099476,167.71,167.62,5.02]
[1729888927955,14.16099476,167.71,167.63,1.49524832]
[1729888928150,1.2359,167.71,167.62,8.0102]
[1729888928347,1.2359,167.71,167.63,1.49526402]
[1729888928547,1.2359,167.71,167.62,5.02]
[1729888928751,1.2359,167.71,167.63,1.49528145]
[1729888928954,12.92509476,167.69,167.63,5.02]
[1729888929154,2.9904,167.64,167.63,5.02]
[1729888929350,12.92509476,167.64,167.54,58.04]
[1729888929552,1.2359,167.71,167.55,1.49582516]
[1729888929553,12.92509476,167.62,167.55,1.49582516]
[1729888929759,2.9913,167.6,167.56,1.49582516]
[1729888929950,12.92509476,167.62,167.51,12.92509476]
[1729888930150,12.92509476,167.62,167.52,6.51592771]
[1729888930348,12.92509476,167.62,167.49,3.7736]
[1729888930349,12.92509476,167.62,167.53,1.49606571]
[1729888930551,12.92509476,167.6,167.53,6.51606571]
[1729888930751,2.9916,167.58,167.53,5.02]
[1729888931461,12.92509476,167.6,167.53,5.02]
[1729888931647,5.0,167.63,167.49,3.7736]
[1729888931851,2.9923,167.56,167.5,5.0]
[1729888932158,12.92509476,167.58,167.5,5.0]
[1729888932548,2.9921,167.57,167.5,5.0]
[1729888932859,12.92509476,167.58,167.5,5.0]
[1729888933157,12.92509476,167.58,167.4,12.92509476]
[1729888933158,12.92509476,167.51,167.4,12.92509476]
[1729888933417,1.2742,167.56,167.41,6.49707495]
[1729888933549,1.2742,167.56,167.42,12.92509476]
[1729888933856,12.92509476,167.54,167.42,12.92509476]
[1729888934060,7.98720683,167.55,167.39,2.5705]
[1729888934061,12.92509476,167.49,167.39,2.5705]
[1729888934250,17.92509476,167.55,167.36,58.08]
[1729888934251,12.92509476,167.47,167.36,5.0]
[1729888934753,2.9946,167.44,167.36,7.996]
[1729888935064,12.92509476,167.45,167.36,5.0]
[1729888935959,12.92509476,167.45,167.36,7.996]
[1729888938357,12.92509476,167.45,167.36,5.0]
[1729888938553,12.92509476,167.45,167.37,2.9958]
[1729888939354,12.92509476,167.45,167.36,7.996]
[1729888939556,12.92509476,167.38,167.27,2.99541412]
[1729888939754,12.92509476,167.38,167.31,5.02]
[1729888940161,12.92509476,167.36,167.31,5.02]
[1729888941364,12.92509476,167.34,167.31,5.02]
[1729888941762,12.92509476,167.34,167.27,2.5172]
[1729888941964,12.92509476,167.34,167.27,1.23]
[1729888942460,12.92509476,167.34,167.29,2.9972]
[1729888942765,12.92509476,167.39,167.29,12.92509476]
[1729888943165,15.92059476,167.39,167.31,2.9969]
[1729888943460,12.92509476,167.39,167.29,12.92509476]
[1729888944260,15.92069476,167.39,167.31,2.9969]
[1729888944460,12.92509476,167.37,167.28,5.02]
[1729888944660,12.92509476,167.37,167.27,1.23]
[1729888944867,2.9962,167.35,167.27,9.2475]
[1729888945065,12.92509476,167.34,167.27,6.25]
[1729888945459,12.92509476,167.34,167.28,2.9973]
[1729888945861,12.92509476,167.37,167.31,2.9968]
[1729888946064,1.2015,167.38,167.28,12.92509476]
[1729888946263,12.92509476,167.37,167.28,12.92509476]
[1729888946463,12.92509476,167.37,167.27,6.25]
[1729888948472,12.92509476,167.32,167.23,5.02]
[1729888948672,12.92509476,167.32,167.24,5.02]
[1729888949765,12.92509476,167.3,167.24,5.02]
[1729888950168,12.92509476,167.3,167.16,2.6051]
[1729888950169,12.92509476,167.28,167.22,2.9984]
[1729888950367,12.92509476,167.28,167.22,8.0184]
[1729888950672,12.92509476,167.28,167.18,12.92509476]
[1729888950870,15.92239476,167.28,167.21,2.9983]
[1729888951061,12.92509476,167.28,167.21,8.0183]
[1729888951666,12.92509476,167.28,167.21,5.02]
[1729888952269,21.96730397,167.3,167.21,5.02]
[1729888953775,1.2407,167.3,167.21,5.02]
[1729888953971,1.2407,167.35,167.22,20.72660397]
[1729888954369,1.2407,167.35,167.23,1.2883]
[1729888954564,1.2929,167.36,167.23,1.2883]
[1729888954773,2.5688,167.36,167.24,1.3018]
[1729888955167,2.9966,167.32,167.24,1.3018]
[1729888955372,2.5688,167.36,167.24,1.3018]
[1729888955574,20.72660397,167.33,167.24,1.3018]
[1729888956372,2.997,167.3,167.24,1.3018]
[1729888956569,20.72660397,167.33,167.02,0.34261185]
[1729888956793,2.5688,167.36,167.09,5.02]
[1729888956794,20.72660397,167.26,167.09,5.02]
[1729888956970,2.5116,167.25,167.18,2.999]
[1729888957265,1.2759,167.25,167.18,2.999]
[1729888957470,1.2759,167.25,167.16,5.02]
[1729888958074,2.998,167.24,167.17,2.9991]
[1729888958375,1.2759,167.25,167.16,5.02]
[1729888959270,2.998,167.24,167.17,2.9991]
[1729888959675,1.2759,167.25,167.03,93.60381188]
[1729888959872,2.9996,167.15,167.08,3.0007]
[1729888960177,20.72660397,167.2,167.06,6.3034]
[1729888961472,20.72660397,167.2,167.06,1.2834]
[1729888961675,20.72660397,167.2,167.07,5.22]
[1729888961879,23.30120397,167.24,167.1,20.72660397]
[1729888962082,28.52120397,167.24,167.1,20.72660397]
[1729888962480,20.72660397,167.21,167.11,5.22]
[1729888963781,22.04950397,167.24,167.11,5.22]
[1729888964281,2.9985,167.21,167.13,2.9998]
[1729888964485,22.04950397,167.24,167.11,5.22]
[1729888964887,2.9982,167.21,167.14,2.9992]
[1729888965182,22.04950397,167.24,167.14,2.9992]
[1729888965382,4.2732,167.25,167.19,2.9984]
[1729888965579,1.2759,167.25,167.2,5.24]
[1729888965974,1.2759,167.25,166.67,2.75674659]
[1729888966180,20.72660397,167.18,167.04,20.72660397]
[1729888966483,1.2114,167.17,167.06,3.0006]
[1729888966680,1.2114,167.17,167.07,5.24]
[1729888966883,1.2886,167.16,167.07,5.24]
[1729888967084,1.2886,167.16,167.08,5.24]
[1729888967286,1.2319,167.2,167.08,5.24]
[1729888967488,2.9987,167.16,167.08,8.2399]
[1729888967881,2.5205,167.2,167.08,5.24]
[1729888968290,2.5205,167.2,167.09,20.72660397]
[1729888969185,4.2865,167.2,167.12,2.9991]
[1729888969380,1.2114,167.24,167.15,20.72660397]
[1729888969578,20.72660397,167.3,167.15,20.72660397]
[1729888969783,21.93740397,167.32,167.19,2.998]
[1729888969985,21.93740397,167.32,167.2,5.24]
[1729888970184,1.2108,167.32,167.2,5.24]
[1729888971182,20.72660397,167.31,167.2,5.24]
[1729888971379,1.2108,167.32,167.2,5.24]
[1729888971579,20.72660397,167.29,167.2,5.24]
[1729888971892,2.9964,167.25,167.2,5.24]
[1729888972078,1.2108,167.32,167.2,5.24]
[1729888972387,2.9961,167.27,167.2,5.24]
[1729888973175,2.9962,167.26,167.2,5.24]
[1729888973686,2.9953,167.32,167.21,20.72660397]
[1729888973884,2.6134,167.36,167.24,20.72660397]
[1729888974084,2.6134,167.36,167.26,2.9962]
[1729888974276,2.9952,167.32,167.25,9.0888]
[1729888974684,2.6134,167.36,167.25,9.0888]
[1729888974886,2.995,167.33,167.25,9.0888]
[1729888975085,2.6134,167.36,167.25,9.0888]
[1729888977285,2.9953,167.32,167.25,12.0851]
[1729888979383,2.6134,167.36,167.25,9.0888]
[1729888979593,2.9956,167.3,167.26,5.24]
[1729888979991,23.34000397,167.36,167.26,5.24]
[1729888980787,2.996,167.28,167.26,5.24]
[1729888981488,2.9957,167.3,167.26,5.24]
[1729888981690,2.6134,167.36,167.26,25.96660397]
[1729888982093,2.9952,167.32,167.26,25.96660397]
[1729888982397,20.72660397,167.35,167.26,5.24]
[1729888982584,2.6134,167.36,167.26,5.24]
[1729888982801,2.6134,167.36,167.26,25.96660397]
[1729888983485,2.9948,167.34,167.27,2.996]
[1729888983697,2.6134,167.36,167.27,2.996]
[1729888983890,2.6134,167.36,167.26,25.96660397]
[1729888984196,62.40133621,167.42,167.29,20.72660397]
[1729888984398,20.72660397,167.43,167.3,2.5965]
[1729888984593,20.72660397,167.43,167.31,5.22]
[1729888984896,2.9943,167.37,167.31,5.22]
[1729888985491,3.7889,167.44,167.32,20.72660397]
[1729888985797,2.9941,167.39,167.32,23.72160397]
[1729888986390,2.9941,167.38,167.32,23.72160397]
[1729888987900,20.72660397,167.43,167.31,5.22]
[1729888988494,2.9948,167.35,167.31,5.22]
[1729888988995,20.72660397,167.4,167.31,5.22]
[1729888989197,2.9951,167.33,167.31,5.22]
[1729888989501,2.9951,167.33,167.32,5.22]
[1729888990196,20.72660397,167.37,167.25,1.248]
[1729888990398,1.3169,167.36,167.26,5.22]
[1729888991697,1.2581,167.39,167.26,25.94660397]
[1729888992094,2.9948,167.35,167.26,25.94660397]
[1729888992299,2.9948,167.35,167.28,2.9959]
[1729888992503,1.2581,167.39,167.26,25.94660397]
[1729888992893,1.2581,167.39,167.27,2.9959]
[1729888993197,1.2581,167.39,167.26,25.94660397]
[1729888993198,1.2581,167.39,167.29,20.72660397]
[1729888993592,1.2581,167.39,167.26,5.22]
[1729888993593,1.3169,167.42,167.32,20.72660397]
[1729888993891,1.2878,167.45,167.34,20.72660397]
[1729888994093,1.2152,167.46,167.37,20.72660397]
[1729888994293,2.9933,167.43,167.37,20.72660397]
[1729888994698,2.9932,167.44,167.37,20.72660397]
[1729888994893,1.2152,167.46,167.37,23.72090397]
[1729888995198,2.9934,167.43,167.37,23.72090397]
[1729888995595,1.2152,167.46,167.37,23.72090397]
[1729888995996,2.9934,167.43,167.37,23.72090397]
[1729888996303,1.2152,167.46,167.37,20.72660397]
[1729888996597,2.9939,167.4,167.37,20.72660397]
[1729888996800,1.3211,167.5,167.37,20.72660397]
[1729888996801,2.6372,167.5,167.37,20.72660397]
[1729888996994,20.72660397,167.48,167.35,6.608]
[1729888997813,20.72660397,167.48,167.36,5.38]
[1729888998005,2.6372,167.5,167.36,5.38]
[1729888998006,2.9942,167.38,167.36,5.38]
[1729888998590,2.9942,167.38,167.35,1.228]
[1729888998904,2.9944,167.37,167.36,5.38]
[1729888999692,3.01408924,167.39,167.23,1.2289]
[1729888999918,3.01408924,167.39,167.24,29.10320397]
[1729888999919,2.9956,167.3,167.24,29.10320397]
[1729889000896,2.9958,167.29,167.24,29.10320397]
[1729889001298,1.2871,167.38,167.24,26.10660397]
[1729889001500,2.9959,167.28,167.24,26.10660397]
[1729889002802,2.9962,167.27,167.24,26.10660397]
[1729889003003,1.2871,167.38,167.24,26.10660397]
[1729889003299,2.996,167.28,167.24,26.10660397]
[1729889003500,1.2871,167.38,167.24,26.10660397]
[1729889003808,20.72660397,167.36,167.25,5.38]
[1729889004103,20.72660397,167.36,167.26,5.38]
[1729889004904,2.995,167.33,167.23,1.2289]
[1729889005112,20.72660397,167.36,167.24,5.38]
[1729889005802,20.72660397,167.36,167.25,5.38]
[1729889007305,2.9963,167.26,167.25,5.38]
[1729889011903,2.9969,167.23,167.22,58.2]
[1729889012099,20.72660397,167.31,167.16,20.72660397]
[1729889012405,1.2855,167.3,167.17,5.38]
[1729889012605,2.9477239,167.29,167.17,5.38]
[1729889012803,1.2855,167.3,167.19,20.72660397]
[1729889013105,2.9973,167.21,167.16,2.998]
[1729889013306,20.72660397,167.27,167.13,5.38]
[1729889013607,23.75856569,167.27,167.14,5.38]
[1729889014405,2.9984,167.15,167.14,5.38]
[1729889015003,1.3297,167.22,167.09,5.38]
[1729889015004,2.9991,167.11,167.09,5.38]
[1729889015604,2.9989,167.12,167.09,5.38]
[1729889017004,1.2074,167.21,167.09,26.10660397]
[1729889017204,1.3297,167.22,167.12,20.72660397]
[1729889017401,1.3297,167.22,167.13,1.2296]
[1729889017605,2.9983,167.15,167.14,5.38]
[1729889020710,1.3297,167.22,167.14,5.38]
[1729889020711,2.9982,167.16,167.14,5.38]
[1729889021306,1.3297,167.22,167.14,5.38]
[1729889021820,2.9983,167.16,167.14,5.38]
[1729889022716,2.9983,167.15,167.14,5.38]
[1729889024519,1.3297,167.22,167.14,5.38]
[1729889024726,2.9983,167.15,167.14,5.38]
[1729889027837,20.72660397,167.19,167.1,5.38]
[1729889028327,2.9994,167.09,167.08,5.38]
[1729889028915,2.9998,167.07,167.06,1.3137]
[1729889029122,7.2862,167.17,167.03,78.90660397]
[1729889029323,7.2862,167.17,167.06,20.72660397]